fUST/lending_fUST_20240727
["ID","MTS","AMOUNT","RATE_DAILY","PERIOD"]
[333290022,1722029446605,-151.0,0.00013962,2]
[333290023,1722029446615,-151.0,0.00013962,2]
[333290024,1722029446625,-151.0,0.00013962,2]
[333290025,1722029446635,-151.0,0.00013962,2]
[333290026,1722029446644,-151.0,0.00013962,2]
[333290027,1722029446654,-5348.82561598,0.00013962,2]
[333290028,1722029446695,-5942.45321347,0.00013962,2]
[333290088,1722030452116,-182.98073957,9.899e-05,2]
[333290089,1722030452137,-182.98073957,9.999e-05,2]
[333290090,1722030452159,-1278.00694538,0.00013,13]
[333290091,1722030453099,-721.99305462,0.00013,13]
[333290092,1722030453121,-168.000722,0.00013425,2]
[333290093,1722030453143,-367.53930495,0.00013505,2]
[333290094,1722030453167,-312.21011147,0.00013598,2]
[333290095,1722030453190,-419.72974958,0.00013598,2]
[333290096,1722030453221,-32.82690553,0.00013598,2]
[333290097,1722030453244,-245.75971998,0.00013664,2]
[333290164,1722030634319,-168.000722,0.00013425,2]
[333290166,1722030634331,-395.98707323,0.00013598,2]
[333290167,1722030634342,-66.45039147,0.00013664,2]
[333290168,1722030634353,-4416.11825633,0.00013664,2]
[333290170,1722030634362,-177.0,0.00013687,2]
[333290172,1722030634372,-116221.628023,0.00013688,2]
[333290173,1722030634382,-236.96465992,0.00013698,2]
[333290174,1722030634392,-502.26495527,0.00013698,2]
[333290176,1722030634402,-502.76179262,0.00013698,2]
[333290178,1722030634412,-500.0,0.00013698,2]
[333290180,1722030634422,-500.0,0.00013698,2]
[333290182,1722030634432,-500.0,0.00013698,2]
[333290183,1722030634441,-500.0,0.00013698,2]
[333290185,1722030634450,-500.0,0.00013698,2]
[333290186,1722030634460,-500.0,0.00013698,2]
[333290188,1722030634471,-500.0,0.00013698,2]
[333290190,1722030634481,-500.0,0.00013698,2]
[333290191,1722030634491,-500.0,0.00013698,2]
[333290192,1722030634500,-500.0,0.00013698,2]
[333290193,1722030634510,-640.54637123,0.00013698,2]
[333290194,1722030634520,-618.21040356,0.00013698,2]
[333290195,1722030634531,-193.38715633,0.00013698,2]
[333290196,1722030634551,-615.15208422,0.00013698,2]
[333290197,1722030634562,-618.25608533,0.00013698,2]
[333290198,1722030634571,-550.54050196,0.00013698,2]
[333290199,1722030634580,-500.0,0.00013698,2]
[333290200,1722030634591,-500.0,0.00013698,2]
[333290201,1722030634605,-500.0,0.00013698,2]
[333290202,1722030634615,-503.636417,0.00013698,2]
[333290203,1722030634624,-500.0,0.00013698,2]
[333290204,1722030634635,-503.8757368,0.00013698,2]
[333290205,1722030634644,-500.0,0.00013698,2]
[333290206,1722030634654,-500.0,0.00013698,2]
[333290207,1722030634664,-500.0,0.00013698,2]
[333290208,1722030634675,-500.0,0.00013698,2]
[333290209,1722030634686,-500.0,0.00013698,2]
[333290210,1722030634695,-500.0,0.00013698,2]
[333290211,1722030634706,-56.58482081,0.00013698,2]
[333290290,1722030638880,-443.41517919,0.00013698,2]
[333290292,1722030638892,-500.0,0.00013698,2]
[333290294,1722030638902,-500.0,0.00013698,2]
[333290295,1722030638911,-500.0,0.00013698,2]
[333290296,1722030638921,-500.0,0.00013698,2]
[333290297,1722030638930,-849.01,0.00013698,2]
[333290298,1722030638939,-500.0,0.00013698,2]
[333290299,1722030638949,-876.62,0.00013698,2]
[333290300,1722030638958,-500.0,0.00013698,2]
[333290301,1722030638968,-500.0,0.00013698,2]
[333290302,1722030638978,-500.0,0.00013698,2]
[333290303,1722030638990,-500.0,0.00013698,2]
[333290304,1722030638999,-501.53796063,0.00013698,2]
[333290305,1722030639009,-500.000001,0.00013698,2]
[333290306,1722030639018,-272.96800646,0.00013698,2]
[333290307,1722030639027,-500.0,0.00013698,2]
[333290308,1722030639036,-500.0,0.00013698,2]
[333290309,1722030639045,-99.32095028,0.00013698,2]
[333290310,1722030639058,-400.67904972,0.00013698,2]
[333290311,1722030639067,-500.0,0.00013698,2]
[333290312,1722030639077,-499.33785755,0.00013698,2]
[333290313,1722030639240,-500.0,0.00013698,2]
[333290314,1722030639251,-500.0,0.00013698,2]
[333290315,1722030639262,-500.0,0.00013698,2]
[333290316,1722030639271,-616.93753203,0.00013698,2]
[333290317,1722030639281,-500.0,0.00013698,2]
[333290318,1722030639290,-217.78729524,0.00013698,2]
[333290319,1722030639299,-501.10551533,0.00013698,2]
[333290320,1722030639311,-46.77793826,0.00013698,2]
[333290321,1722030639323,-453.22206174,0.00013698,2]
[333290322,1722030639332,-500.0,0.00013698,2]
[333290323,1722030639341,-501.2481524,0.00013698,2]
[333290324,1722030639350,-500.0,0.00013698,2]
[333290325,1722030639360,-502.50851254,0.00013698,2]
[333290326,1722030639370,-500.0,0.00013698,2]
[333290327,1722030639380,-500.0,0.00013698,2]
[333290328,1722030639390,-502.04888662,0.00013698,2]
[333290329,1722030639400,-500.0,0.00013698,2]
[333290330,1722030639409,-187.48453867,0.00013698,2]
[333290367,1722030640725,-313.5186,0.00013698,2]
[333290368,1722030640734,-500.0,0.00013698,2]
[333290369,1722030640744,-500.0,0.00013698,2]
[333290370,1722030640753,-500.0,0.00013698,2]
[333290371,1722030640763,-500.0,0.00013698,2]
[333290372,1722030640772,-505.92248402,0.00013698,2]
[333290373,1722030640783,-501.11110698,0.00013698,2]
[333290374,1722030640792,-894.13,0.00013698,2]
[333290375,1722030640802,-500.0,0.00013698,2]
[333290376,1722030640814,-500.0,0.00013698,2]
[333290377,1722030640825,-515.77249068,0.00013698,2]
[333290378,1722030640836,-500.0,0.00013698,2]
[333290379,1722030640846,-500.0,0.00013698,2]
[333290380,1722030640857,-500.0,0.00013698,2]
[333290381,1722030640867,-500.0,0.00013698,2]
[333290382,1722030640877,-500.0,0.00013698,2]
[333290383,1722030640888,-500.0,0.00013698,2]
[333290384,1722030640897,-519.42437233,0.00013698,2]
[333290385,1722030640907,-500.0,0.00013698,2]
[333290386,1722030640916,-500.0,0.00013698,2]
[333290387,1722030640927,-500.0,0.00013698,2]
[333290388,1722030640937,-557.06,0.00013698,2]
[333290389,1722030640948,-500.0,0.00013698,2]
[333290390,1722030640959,-500.0,0.00013698,2]
[333290391,1722030640970,-500.0,0.00013698,2]
[333290392,1722030640979,-500.0,0.00013698,2]
[333290393,1722030640989,-500.0,0.00013698,2]
[333290394,1722030640998,-834.49,0.00013698,2]
[333290395,1722030641008,-500.0,0.00013698,2]
[333290396,1722030641020,-500.0,0.00013698,2]
[333290397,1722030641031,-500.0,0.00013698,2]
[333290398,1722030641042,-500.0,0.00013698,2]
[333290399,1722030641054,-457.91919366,0.00013698,2]
[333290400,1722030641065,-353.63996096,0.00013698,2]
[333290401,1722030641075,-500.0,0.00013698,2]
[333290402,1722030641085,-500.0,0.00013698,2]
[333290403,1722030641094,-500.0,0.00013698,2]
[333290404,1722030641103,-500.0,0.00013698,2]
[333290405,1722030641113,-500.0,0.00013698,2]
[333290406,1722030641124,-500.0,0.00013698,2]
[333290407,1722030641135,-500.66325794,0.00013698,2]
[333290408,1722030641146,-500.0,0.00013698,2]
[333290409,1722030641157,-302.55066996,0.00013698,2]
[333290410,1722030641167,-775.1,0.00013698,2]
[333290411,1722030641177,-500.39114222,0.00013698,2]
[333290412,1722030641187,-837.32,0.00013698,2]
[333290413,1722030641196,-500.0,0.00013698,2]
[333290414,1722030641207,-877.7,0.00013698,2]
[333290415,1722030641220,-500.0,0.00013698,2]
[333290416,1722030641230,-268.45224502,0.00013698,2]
[333290417,1722030641239,-500.0,0.00013698,2]
[333290418,1722030641250,-500.0,0.00013698,2]
[333290419,1722030641262,-500.0,0.00013698,2]
[333290420,1722030641271,-1029.56,0.00013698,2]
[333290421,1722030641281,-500.0,0.00013698,2]
[333290422,1722030641291,-500.0,0.00013698,2]
[333290423,1722030641300,-500.63549699,0.00013698,2]
[333290424,1722030641310,-500.0,0.00013698,2]
[333290425,1722030641319,-500.0,0.00013698,2]
[333290426,1722030641328,-500.0,0.00013698,2]
[333290427,1722030641339,-500.0,0.00013698,2]
[333290428,1722030641351,-500.0,0.00013698,2]
[333290429,1722030641362,-986.89,0.00013698,2]
[333290430,1722030641372,-500.0,0.00013698,2]
[333290431,1722030641383,-500.0,0.00013698,2]
[333290432,1722030641395,-500.0,0.00013698,2]
[333290433,1722030641405,-500.0,0.00013698,2]
[333290434,1722030641414,-500.0,0.00013698,2]
[333290435,1722030641424,-500.0,0.00013698,2]
[333290436,1722030641435,-500.0,0.00013698,2]
[333290437,1722030641444,-500.0,0.00013698,2]
[333290438,1722030641457,-500.0,0.00013698,2]
[333290439,1722030641466,-500.0,0.00013698,2]
[333290440,1722030641477,-1264.3,0.00013698,2]
[333290441,1722030641487,-503.48151961,0.00013698,2]
[333290442,1722030641497,-500.0,0.00013698,2]
[333290443,1722030641508,-976.85,0.00013698,2]
[333290444,1722030641519,-500.0,0.00013698,2]
[333290445,1722030641529,-352.51399078,0.00013698,2]
[333290446,1722030641541,-500.0,0.00013698,2]
[333290447,1722030641551,-500.0,0.00013698,2]
[333290448,1722030641561,-500.0,0.00013698,2]
[333290449,1722030641570,-500.0,0.00013698,2]
[333290450,1722030641580,-500.0,0.00013698,2]
[333290451,1722030641590,-1776.14,0.00013698,2]
[333290452,1722030641604,-786.77,0.00013698,2]
[333290453,1722030641616,-500.0,0.00013698,2]
[333290454,1722030641625,-500.0,0.00013698,2]
[333290455,1722030641635,-500.0,0.00013698,2]
[333290456,1722030641645,-500.0,0.00013698,2]
[333290457,1722030641655,-500.0,0.00013698,2]
[333290458,1722030641664,-500.0,0.00013698,2]
[333290459,1722030641674,-500.0,0.00013698,2]
[333290460,1722030641684,-500.0,0.00013698,2]
[333290461,1722030641693,-1153.47,0.00013698,2]
[333290462,1722030641704,-754.46,0.00013698,2]
[333290463,1722030641713,-500.0,0.00013698,2]
[333290464,1722030641723,-500.0,0.00013698,2]
[333290465,1722030641733,-754.12,0.00013698,2]
[333290466,1722030641742,-500.0,0.00013698,2]
[333290467,1722030641752,-513.49145034,0.00013698,2]
[333290468,1722030641763,-500.0,0.00013698,2]
[333290469,1722030641773,-640.43780664,0.00013698,2]
[333290470,1722030641783,-500.0,0.00013698,2]
[333290471,1722030641792,-457.52091022,0.00013698,2]
[333290472,1722030641802,-500.0,0.00013698,2]
[333290473,1722030641811,-500.0,0.00013698,2]
[333290474,1722030641821,-500.0,0.00013698,2]
[333290475,1722030641831,-649.40005782,0.00013698,2]
[333290476,1722030641840,-500.0,0.00013698,2]
[333290477,1722030641849,-500.0,0.00013698,2]
[333290478,1722030641859,-205.07780958,0.00013698,2]
[333290479,1722030641868,-500.0,0.00013698,2]
[333290480,1722030641878,-500.0,0.00013698,2]
[333290481,1722030641888,-500.0,0.00013698,2]
[333290482,1722030641898,-500.0,0.00013698,2]
[333290483,1722030641907,-500.0,0.00013698,2]
[333290484,1722030641917,-746.9,0.00013698,2]
[333290485,1722030641926,-500.0,0.00013698,2]
[333290486,1722030641935,-500.0,0.00013698,2]
[333290487,1722030641944,-500.0,0.00013698,2]
[333290488,1722030641954,-500.0,0.00013698,2]
[333290489,1722030641963,-500.0,0.00013698,2]
[333290490,1722030641973,-505.86713518,0.00013698,2]
[333290491,1722030641982,-500.0,0.00013698,2]
[333290492,1722030641991,-500.0,0.00013698,2]
[333290493,1722030642001,-1940.73,0.00013698,2]
[333290494,1722030642011,-500.0,0.00013698,2]
[333290495,1722030642022,-500.0,0.00013698,2]
[333290496,1722030642033,-2110.99,0.00013698,2]
[333290497,1722030642043,-500.0,0.00013698,2]
[333290498,1722030642053,-500.0,0.00013698,2]
[333290499,1722030642062,-500.0,0.00013698,2]
[333290500,1722030642071,-1588.69,0.00013698,2]
[333290501,1722030642080,-1335.19,0.00013698,2]
[333290502,1722030642090,-500.0,0.00013698,2]
[333290503,1722030642099,-1347.16,0.00013698,2]
[333290504,1722030642108,-500.0,0.00013698,2]
[333290505,1722030642117,-5878.5,0.00013698,2]
[333290506,1722030642126,-2507.13,0.00013698,2]
[333290507,1722030642136,-500.0,0.00013698,2]
[333290508,1722030642145,-565.19,0.00013698,2]
[333290509,1722030642154,-1172.88,0.00013698,2]
[333290510,1722030642163,-500.0,0.00013698,2]
[333290511,1722030642173,-2385.82,0.00013698,2]
[333290512,1722030642182,-500.0,0.00013698,2]
[333290513,1722030642193,-500.0,0.00013698,2]
[333290514,1722030642202,-500.0,0.00013698,2]
[333290515,1722030642212,-500.0,0.00013698,2]
[333290516,1722030642222,-295.1,0.00013698,2]
[333290517,1722030642231,-500.0,0.00013698,2]
[333290518,1722030642240,-500.0,0.00013698,2]
[333290519,1722030642252,-500.0,0.00013698,2]
[333290520,1722030642262,-500.0,0.00013698,2]
[333290521,1722030642272,-500.0,0.00013698,2]
[333290522,1722030642282,-500.0,0.00013698,2]
[333290523,1722030642291,-500.0,0.00013698,2]
[333290524,1722030642301,-500.0,0.00013698,2]
[333290525,1722030642311,-7831.43,0.00013698,2]
[333290526,1722030642322,-1088.0,0.00013698,2]
[333290527,1722030642334,-500.0,0.00013698,2]
[333290528,1722030642345,-500.0,0.00013698,2]
[333290529,1722030642355,-3818.67,0.00013698,2]
[333290530,1722030642366,-528.17,0.00013698,2]
[333290531,1722030642375,-485.13906407,0.00013698,2]
[333290532,1722030642386,-2567.46,0.00013698,2]
[333290533,1722030642395,-755.27,0.00013698,2]
[333290534,1722030642405,-500.0,0.00013698,2]
[333290535,1722030642414,-1814.87,0.00013698,2]
[333290536,1722030642423,-500.0,0.00013698,2]
[333290537,1722030642434,-500.0,0.00013698,2]
[333290538,1722030642444,-500.0,0.00013698,2]
[333290539,1722030642453,-500.0,0.00013698,2]
[333290540,1722030642463,-505.23021985,0.00013698,2]
[333290541,1722030642472,-500.0,0.00013698,2]
[333290542,1722030642481,-500.0,0.00013698,2]
[333290543,1722030642491,-773.57,0.00013698,2]
[333290544,1722030642500,-500.0,0.00013698,2]
[333290545,1722030642509,-733.74,0.00013698,2]
[333290546,1722030642519,-500.0,0.00013698,2]
[333290547,1722030642528,-979.51,0.00013698,2]
[333290548,1722030642538,-500.0,0.00013698,2]
[333290549,1722030642547,-500.0,0.00013698,2]
[333290550,1722030642556,-588.15,0.00013698,2]
[333290551,1722030642566,-2055.98,0.00013698,2]
[333290552,1722030642575,-500.0,0.00013698,2]
[333290553,1722030642584,-967.11,0.00013698,2]
[333290554,1722030642596,-500.0,0.00013698,2]
[333290555,1722030642606,-500.0,0.00013698,2]
[333290556,1722030642616,-696.03,0.00013698,2]
[333290557,1722030642626,-5955.7,0.00013698,2]
[333290558,1722030642638,-1219.96,0.00013698,2]
[333290559,1722030642648,-1092.85,0.00013698,2]
[333290560,1722030642659,-729.55,0.00013698,2]
[333290561,1722030642668,-1722.4,0.00013698,2]
[333290562,1722030642680,-500.0,0.00013698,2]
[333290563,1722030642691,-500.0,0.00013698,2]
[333290564,1722030642700,-500.0,0.00013698,2]
[333290565,1722030642709,-500.0,0.00013698,2]
[333290566,1722030642720,-163.02588672,0.00013698,2]
[333290641,1722030643713,-332.00000001,0.00013698,2]
[333290669,1722030648096,-4.97411327,0.00013698,2]
[333290670,1722030648106,-3661.31,0.00013698,2]
[333290671,1722030648115,-500.0,0.00013698,2]
[333290672,1722030648125,-500.0,0.00013698,2]
[333290673,1722030648134,-500.0,0.00013698,2]
[333290674,1722030648144,-965.07,0.00013698,2]
[333290675,1722030648155,-928.65,0.00013698,2]
[333290676,1722030648166,-1916.11,0.00013698,2]
[333290677,1722030648176,-500.0,0.00013698,2]
[333290678,1722030648188,-500.0,0.00013698,2]
[333290679,1722030648197,-500.0,0.00013698,2]
[333290680,1722030648207,-1088.84,0.00013698,2]
[333290681,1722030648217,-324.54876759,0.00013698,2]
[333290682,1722030648404,-606.60123241,0.00013698,2]
[333290683,1722030648414,-500.0,0.00013698,2]
[333290684,1722030648423,-677.53,0.00013698,2]
[333290685,1722030648432,-500.0,0.00013698,2]
[333290686,1722030648442,-800.97459288,0.00013698,2]
[333290687,1722030648453,-79.53540712,0.00013698,2]
[333290688,1722030648463,-278.21972548,0.00013698,2]
[333290689,1722030648475,-221.78027452,0.00013698,2]
[333290690,1722030648484,-500.0,0.00013698,2]
[333290691,1722030648493,-500.0,0.00013698,2]
[333290692,1722030648503,-427.45876759,0.00013698,2]
[333290697,1722031647192,-182.98073957,9.999e-05,2]
[333290698,1722031647214,-2053.49451566,0.00013,2]
[333290800,1722031837808,-1219.41085575,0.00013,2]
[333290801,1722031837857,-727.09462859,0.00013,2]
[333290802,1722031837869,-168.000722,0.00013425,2]
[333290803,1722031837879,-367.53930495,0.00013509,2]
[333290804,1722031837889,-187.32606687,0.00013598,2]
[333290805,1722031837900,-410.26279953,0.00013598,2]
[333290806,1722031837912,-187.32606687,0.00013664,2]
[333290807,1722031837924,-1426.26986076,0.00013688,2]
[333290808,1722031837936,-1958.1,0.00013688,2]
[333290809,1722031837981,-3413.23827696,0.00013688,2]
[333290810,1722031837995,-1947.70694653,0.00013688,2]
[333290816,1722031839995,-90392.72508965,0.00013688,2]
[333290817,1722031840006,-505.92248402,0.00013698,2]
[333290818,1722031840015,-500.0,0.00013698,2]
[333290819,1722031840025,-500.0,0.00013698,2]
[333290820,1722031840035,-186.77593733,0.00013698,2]
[333290821,1722031840044,-500.0,0.00013698,2]
[333290822,1722031840054,-500.0,0.00013698,2]
[333290823,1722031840063,-500.0,0.00013698,2]
[333290824,1722031840074,-500.0,0.00013698,2]
[333290825,1722031840084,-501.11110698,0.00013698,2]
[333290826,1722031840095,-515.77249068,0.00013698,2]
[333290827,1722031840105,-500.0,0.00013698,2]
[333290828,1722031840115,-500.0,0.00013698,2]
[333290829,1722031840126,-500.0,0.00013698,2]
[333290830,1722031840137,-519.42437233,0.00013698,2]
[333290831,1722031840147,-500.39114222,0.00013698,2]
[333290832,1722031840158,-500.0,0.00013698,2]
[333290833,1722031840167,-500.0,0.00013698,2]
[333290834,1722031840176,-500.0,0.00013698,2]
[333290835,1722031840185,-500.0,0.00013698,2]
[333290836,1722031840195,-500.0,0.00013698,2]
[333290837,1722031840204,-500.66325794,0.00013698,2]
[333290838,1722031840213,-500.0,0.00013698,2]
[333290839,1722031840223,-500.0,0.00013698,2]
[333290840,1722031840232,-1029.56,0.00013698,2]
[333290841,1722031840242,-500.0,0.00013698,2]
[333290842,1722031840251,-500.0,0.00013698,2]
[333290843,1722031840261,-500.0,0.00013698,2]
[333290844,1722031840271,-500.0,0.00013698,2]
[333290845,1722031840281,-502.03619974,0.00013698,2]
[333290846,1722031840290,-500.0,0.00013698,2]
[333290847,1722031840299,-786.77,0.00013698,2]
[333290848,1722031840308,-500.0,0.00013698,2]
[333290849,1722031840318,-500.0,0.00013698,2]
[333290850,1722031840328,-500.0,0.00013698,2]
[333290851,1722031840340,-475.97552572,0.00013698,2]
[333290852,1722031840350,-457.52091022,0.00013698,2]
[333290853,1722031840361,-500.0,0.00013698,2]
[333290854,1722031840372,-500.0,0.00013698,2]
[333290855,1722031840382,-500.0,0.00013698,2]
[333290856,1722031840394,-500.0,0.00013698,2]
[333290857,1722031840404,-1153.47,0.00013698,2]
[333290858,1722031840414,-500.0,0.00013698,2]
[333290859,1722031840423,-503.61714879,0.00013698,2]
[333290860,1722031840433,-513.49145034,0.00013698,2]
[333290861,1722031840443,-500.0,0.00013698,2]
[333290862,1722031840452,-500.0,0.00013698,2]
[333290863,1722031840461,-1207.31,0.00013698,2]
[333290864,1722031840472,-500.0,0.00013698,2]
[333290865,1722031840482,-640.43780664,0.00013698,2]
[333290866,1722031840492,-205.07780958,0.00013698,2]
[333290867,1722031840502,-500.0,0.00013698,2]
[333290868,1722031840512,-500.0,0.00013698,2]
[333290869,1722031840521,-844.8,0.00013698,2]
[333290870,1722031840531,-500.0,0.00013698,2]
[333290871,1722031840540,-502.24,0.00013698,2]
[333290872,1722031840550,-632.38,0.00013698,2]
[333290873,1722031840559,-500.0,0.00013698,2]
[333290874,1722031840568,-500.0,0.00013698,2]
[333290875,1722031840579,-500.0,0.00013698,2]
[333290876,1722031840590,-500.0,0.00013698,2]
[333290877,1722031840600,-500.0,0.00013698,2]
[333290878,1722031840612,-500.0,0.00013698,2]
[333290879,1722031840623,-500.0,0.00013698,2]
[333290880,1722031840635,-500.0,0.00013698,2]
[333290881,1722031840646,-894.13,0.00013698,2]
[333290882,1722031840657,-500.0,0.00013698,2]
[333290883,1722031840667,-500.0,0.00013698,2]
[333290884,1722031840678,-500.0,0.00013698,2]
[333290885,1722031840689,-500.0,0.00013698,2]
[333290886,1722031840699,-500.0,0.00013698,2]
[333290887,1722031840708,-505.86713518,0.00013698,2]
[333290888,1722031840720,-500.0,0.00013698,2]
[333290889,1722031840731,-500.0,0.00013698,2]
[333290890,1722031840743,-500.0,0.00013698,2]
[333290891,1722031840754,-500.0,0.00013698,2]
[333290892,1722031840764,-500.0,0.00013698,2]
[333290893,1722031840775,-500.0,0.00013698,2]
[333290894,1722031840786,-500.0,0.00013698,2]
[333290895,1722031840796,-353.63996096,0.00013698,2]
[333290896,1722031840807,-500.0,0.00013698,2]
[333290897,1722031840817,-557.06,0.00013698,2]
[333290898,1722031840826,-500.0,0.00013698,2]
[333290899,1722031840836,-500.0,0.00013698,2]
[333290900,1722031840845,-500.0,0.00013698,2]
[333290901,1722031840855,-500.0,0.00013698,2]
[333290902,1722031840865,-500.0,0.00013698,2]
[333290903,1722031840876,-500.0,0.00013698,2]
[333290904,1722031840886,-834.49,0.00013698,2]
[333290905,1722031840896,-500.0,0.00013698,2]
[333290906,1722031840905,-457.91919366,0.00013698,2]
[333290907,1722031840915,-775.1,0.00013698,2]
[333290908,1722031840924,-500.0,0.00013698,2]
[333290909,1722031840934,-500.0,0.00013698,2]
[333290910,1722031840943,-500.0,0.00013698,2]
[333290911,1722031840953,-877.7,0.00013698,2]
[333290912,1722031840962,-302.55066996,0.00013698,2]
[333290913,1722031840972,-837.32,0.00013698,2]
[333290914,1722031840987,-500.0,0.00013698,2]
[333290915,1722031840997,-268.45224502,0.00013698,2]
[333290916,1722031841007,-500.0,0.00013698,2]
[333290917,1722031841017,-500.0,0.00013698,2]
[333290918,1722031841028,-500.63549699,0.00013698,2]
[333290919,1722031841037,-500.0,0.00013698,2]
[333290920,1722031841046,-485.13906407,0.00013698,2]
[333290921,1722031841058,-500.0,0.00013698,2]
[333290922,1722031841067,-500.0,0.00013698,2]
[333290923,1722031841078,-500.0,0.00013698,2]
[333290924,1722031841087,-500.0,0.00013698,2]
[333290925,1722031841097,-44.77037355,0.00013698,2]
[333290935,1722031843140,-455.22962645,0.00013698,2]
[333290936,1722031843150,-986.89,0.00013698,2]
[333290937,1722031843160,-500.0,0.00013698,2]
[333290938,1722031843170,-500.0,0.00013698,2]
[333290939,1722031843179,-500.0,0.00013698,2]
[333290940,1722031843189,-500.0,0.00013698,2]
[333290941,1722031843199,-500.0,0.00013698,2]
[333290942,1722031843210,-500.0,0.00013698,2]
[333290943,1722031843221,-500.0,0.00013698,2]
[333290944,1722031843231,-1264.3,0.00013698,2]
[333290945,1722031843243,-500.0,0.00013698,2]
[333290946,1722031843252,-100.08037355,0.00013698,2]
[333291015,1722031846230,-399.91962645,0.00013698,2]
[333291016,1722031846241,-500.0,0.00013698,2]
[333291017,1722031846251,-503.48151961,0.00013698,2]
[333291018,1722031846260,-500.0,0.00013698,2]
[333291019,1722031846270,-352.51399078,0.00013698,2]
[333291020,1722031846280,-1092.85,0.00013698,2]
[333291021,1722031846290,-976.85,0.00013698,2]
[333291022,1722031846300,-500.0,0.00013698,2]
[333291023,1722031846309,-500.0,0.00013698,2]
[333291024,1722031846319,-500.0,0.00013698,2]
[333291025,1722031846330,-500.0,0.00013698,2]
[333291026,1722031846341,-500.0,0.00013698,2]
[333291027,1722031846352,-500.0,0.00013698,2]
[333291028,1722031846364,-500.0,0.00013698,2]
[333291029,1722031846375,-500.0,0.00013698,2]
[333291030,1722031846388,-500.0,0.00013698,2]
[333291031,1722031846398,-500.0,0.00013698,2]
[333291032,1722031846409,-1776.14,0.00013698,2]
[333291033,1722031846420,-228.24695006,0.00013698,2]
[333291034,1722032805278,-182.98073957,9.999e-05,2]
[333291035,1722032805304,-87.75664802,9.999e-05,2]
[333291037,1722032834121,-152.16328853,9.999e-05,2]
[333291038,1722032834144,-168.000722,0.00013425,2]
[333291039,1722032834168,-5.42658139,0.00013451,2]
[333291040,1722032847122,-327.72720899,0.00013451,2]
[333291041,1722032847146,-187.32606687,0.00013598,2]
[333291042,1722032847168,-358.97994958,0.00013598,2]
[333291043,1722032847190,-150.112233,0.000136,2]
[333291044,1722032847213,-500.66325794,0.00013698,2]
[333291045,1722032847236,-500.0,0.00013698,2]
[333291046,1722032847260,-500.0,0.00013698,2]
[333291047,1722032847284,-500.74857625,0.00013698,2]
[333291048,1722032847306,-148.04326261,0.00013698,2]
[333291052,1722032963136,-273.37336231,9.9e-05,2]
[333291118,1722033038090,-1167.76055007,0.000125,2]
[333291120,1722033038101,-481.45475719,0.000135,2]
[333291151,1722033040007,-285.29888257,0.000135,2]
[333291152,1722033040136,-1352.50246906,0.000135,2]
[333291153,1722033040147,-314.10745583,0.00013588,2]
[333291154,1722033040156,-20.52642634,0.000136,2]
[333291155,1722033040169,-18535.48363421,0.000136,2]
[333291156,1722033040180,-37793.80489061,0.00013686,2]
[333291157,1722033040192,-11561.86877367,0.00013688,2]
[333291168,1722033043441,-3665.44910801,0.00013688,2]
[333291169,1722033044577,174.09976144,9.9e-05,2]
[333291186,1722033052964,52.52687625,9.9e-05,2]